bitfinex/quotes_BTCUSD_20251209
["timestamp","ask_amount","ask_price","bid_price","bid_amount"]
[1765295340973,0.01086885,92006.0,92000.0,0.01199457]
[1765295341190,0.22825342,92003.0,92002.0,0.0220374]
[1765295341427,0.21738359,92004.0,92000.0,0.00161287]
[1765295341428,0.01086909,92004.0,92000.0,0.00161287]
[1765295341634,8.398e-05,92007.0,92006.0,0.0220374]
[1765295341836,8.398e-05,92007.0,92006.0,0.02365027]
[1765295342221,8.398e-05,92007.0,92006.0,0.00161287]
[1765295342753,8.398e-05,92007.0,92006.0,0.02365027]
[1765295344092,8.398e-05,92007.0,92006.0,0.02565027]
[1765295344312,8.398e-05,92007.0,92006.0,0.02765027]
[1765295344754,8.398e-05,92007.0,92006.0,0.03365027]
[1765295345248,8.398e-05,92007.0,92006.0,0.03463622]
[1765295345649,8.398e-05,92007.0,92006.0,0.01259882]
[1765295345852,0.06260697,92007.0,92006.0,0.01098595]
[1765295345992,0.08236615,92007.0,92006.0,0.01098595]
[1765295346193,0.45086058,92007.0,92006.0,0.00498595]
[1765295346494,0.2174362,91981.0,91970.0,0.001]
[1765295346664,0.2174362,91981.0,91950.0,0.0004]
[1765295346665,0.01087452,91958.0,91957.0,0.0220374]
[1765295346885,0.21748828,91959.0,91957.0,0.00161287]
[1765295346886,0.01087441,91959.0,91957.0,0.00161287]
[1765295347013,0.01087429,91960.0,91959.0,0.0220374]
[1765295347217,0.01087417,91961.0,91960.0,0.0220374]
[1765295347575,0.01087346,91967.0,91966.0,0.00999457]
[1765295347722,0.228345,91967.0,91966.0,0.01160744]
[1765295347918,0.22842892,91967.0,91966.0,0.01160744]
[1765295348171,8.392e-05,91967.0,91966.0,0.01160744]
[1765295348799,8.392e-05,91967.0,91950.0,0.0004]
[1765295348800,0.21748349,91961.0,91954.0,0.0220374]
[1765295349024,0.21748349,91961.0,91950.0,0.0024]
[1765295349025,0.01087512,91953.0,91950.0,0.0004]
[1765295349222,0.21750715,91951.0,91950.0,0.0004]
[1765295349770,0.22837763,91953.0,91950.0,0.0224374]
[1765295349980,0.21750715,91951.0,91950.0,0.02405027]
[1765295350199,0.01087512,91953.0,91950.0,0.02405027]
[1765295350465,0.22836511,91958.0,91957.0,0.00999457]
[1765295350466,0.01087452,91958.0,91957.0,0.00999457]
[1765295350613,0.01087429,91960.0,91959.0,0.0220374]
[1765295350819,0.21747209,91966.0,91959.0,0.0220374]
[1765295350820,0.01095738,91967.0,91960.0,0.002]
[1765295350994,0.01095738,91967.0,91966.0,0.02365027]
[1765295350995,8.392e-05,91967.0,91966.0,0.02365027]
[1765295352919,8.392e-05,91967.0,91966.0,0.02389672]
[1765295353116,8.392e-05,91967.0,91966.0,0.02489672]
[1765295353317,8.392e-05,91967.0,91966.0,0.02581094]
[1765295353578,8.392e-05,91967.0,91966.0,0.04013337]
[1765295353737,8.392e-05,91967.0,91966.0,0.29572506]
[1765295353943,0.21736045,92014.0,92010.0,0.002]
[1765295354140,0.22821066,92021.0,92020.0,0.0220374]
[1765295354540,0.22821066,92021.0,92020.0,0.02368017]
[1765295354977,0.22821066,92021.0,92020.0,0.00161287]
[1765295355181,0.22821066,92021.0,92012.0,0.01998914]
[1765295355182,0.21736059,92013.0,92012.0,0.01998914]
[1765295355761,0.01086743,92018.0,92012.0,0.00161287]
[1765295355962,0.01086673,92024.0,92023.0,0.00999457]
[1765295356190,0.43453695,92053.0,92027.0,0.0220673]
[1765295356191,0.22818581,92031.0,92027.0,0.0220673]
[1765295356409,0.21732393,92029.0,92027.0,0.0220673]
[1765295356616,0.21732393,92029.0,92025.0,0.00999457]
[1765295356617,0.01086649,92026.0,92025.0,0.00999457]
[1765295356816,0.03731918,92028.0,92023.0,0.00161287]
[1765295356817,0.01756,92028.0,92027.0,0.0220673]
[1765295357022,0.23488516,92028.0,92027.0,0.0220673]
[1765295357181,0.2173346,92024.0,92023.0,0.01260744]
[1765295357380,0.2173346,92024.0,92023.0,0.01160744]
[1765295357612,0.24575141,92028.0,92023.0,0.00161287]
[1765295357769,0.01975918,92027.0,92026.0,0.0220673]
[1765295357971,0.00123965,92033.0,92026.0,0.00161287]
[1765295358198,0.00123965,92033.0,92032.0,0.0220673]
[1765295359219,0.00123965,92033.0,92020.0,0.002]
[1765295359419,0.00123965,92033.0,92010.0,0.00011601]
[1765295359420,0.21733933,92022.0,92021.0,0.00999457]
[1765295359991,0.21732919,92027.0,91998.0,0.00023205]
[1765295359992,0.21739366,91999.0,91998.0,0.00023205]
[1765295360191,0.21750979,91999.0,91998.0,0.00023205]
[1765295360391,0.23506979,91999.0,91998.0,0.00023205]
[1765295361388,0.23806979,91999.0,91998.0,0.00023205]
[1765295362514,0.23506979,91999.0,91998.0,0.00023205]
[1765295362982,0.23806979,91999.0,91998.0,0.00023205]
[1765295363117,0.00311613,91999.0,91998.0,0.00023205]
[1765295363328,0.00011613,91999.0,91998.0,0.00184492]
[1765295363737,0.00111613,91999.0,91998.0,0.00184492]
[1765295364128,0.00011613,91999.0,91998.0,0.00184492]
[1765295364327,0.00011613,91999.0,91998.0,0.00284492]
[1765295364523,0.00011613,91999.0,91998.0,0.03124834]
[1765295364728,0.00011613,91999.0,91998.0,0.00284492]
[1765295365181,0.00011613,91999.0,91998.0,0.03124743]
[1765295365383,0.00011613,91999.0,91998.0,0.00284492]
[1765295365540,0.00011613,91999.0,91998.0,0.00983421]
[1765295365945,0.00311613,91999.0,91998.0,0.00983421]
[1765295366330,0.00011613,91999.0,91998.0,0.00184492]
[1765295366530,0.00011613,91999.0,91998.0,0.03028388]
[1765295366772,0.00111613,91999.0,91998.0,0.00184492]
[1765295367153,0.00011613,91999.0,91998.0,0.00184492]
[1765295367551,0.00111613,91999.0,91998.0,0.00184492]
[1765295367751,0.00111613,91999.0,91998.0,0.00884492]
[1765295368854,0.00011613,91999.0,91998.0,0.00184492]
[1765295369374,0.00011613,91999.0,91998.0,0.00384492]
[1765295370346,0.00011613,91999.0,91998.0,0.03228388]
[1765295370540,0.00011613,91999.0,91998.0,0.03233811]
[1765295370789,0.00011613,91999.0,91998.0,0.00384492]
[1765295371148,0.00011613,91999.0,91998.0,0.01400287]
[1765295371355,0.00011613,91999.0,91998.0,0.00384492]
[1765295371781,0.00011613,91999.0,91998.0,0.00184492]
[1765295372183,0.00011613,91999.0,91998.0,0.01597248]
[1765295372413,0.00011613,91999.0,91998.0,0.01297248]
[1765295372557,0.00011613,91999.0,91998.0,0.06994092]
[1765295372757,0.00011613,91999.0,91998.0,0.08255296]
[1765295373467,0.00011613,91999.0,91998.0,0.03058452]
[1765295373875,0.00011613,91999.0,91998.0,0.02858452]
[1765295374275,0.00123965,92033.0,92011.0,0.01086826]
[1765295374473,0.00135575,92033.0,92025.0,0.01630444]
[1765295374678,0.21732173,92030.0,92025.0,0.01791731]
[1765295374896,0.00135575,92033.0,92025.0,0.01791731]
[1765295375832,0.00135575,92033.0,92025.0,0.02191731]
[1765295376038,0.2173167,92032.0,92025.0,0.01791731]
[1765295376332,0.00135575,92033.0,92025.0,0.02091731]
[1765295376534,0.00135575,92033.0,92025.0,0.02191731]
[1765295376748,0.00135575,92033.0,92026.0,0.02843006]
[1765295377034,0.00135575,92033.0,92026.0,0.03004293]
[1765295377251,0.01086578,92032.0,92026.0,0.00161287]
[1765295377419,0.22953523,92033.0,92026.0,0.00161287]
[1765295377606,0.22953582,92033.0,92026.0,0.00161287]
[1765295377829,0.01086614,92029.0,92026.0,0.00161287]
[1765295378246,0.0108659,92031.0,92026.0,0.00161287]
[1765295378394,0.0108659,92031.0,92026.0,0.00461287]
[1765295378602,0.21732545,92028.0,92026.0,0.00161287]
[1765295378811,0.01086696,92022.0,92015.0,0.02843006]
[1765295379011,0.01086696,92022.0,92015.0,0.00161287]
[1765295379012,0.2173522,92017.0,92015.0,0.00161287]
[1765295379380,0.01086743,92018.0,92011.0,0.02843006]
[1765295379381,0.01086791,92014.0,92011.0,0.02843006]
[1765295379513,0.22819389,92027.0,92011.0,0.00161287]
[1765295379707,0.21734412,92020.0,92014.0,0.02846593]
[1765295379950,0.01086696,92022.0,92013.0,0.02846593]
[1765295379951,0.01086767,92016.0,92013.0,0.02846593]
[1765295380146,0.22822613,92014.0,92012.0,0.02846593]
[1765295380939,0.21735919,92014.0,92012.0,0.02846593]
[1765295381142,0.21736295,92012.0,92011.0,0.00161287]
[1765295381882,0.21736295,92012.0,91998.0,0.00023205]
[1765295381883,0.21737712,92006.0,92005.0,0.03790675]
[1765295382180,0.21738894,92001.0,92000.0,0.03790675]
[1765295382379,0.21739366,91999.0,91998.0,0.00023205]
[1765295383495,0.27991665,91999.0,91998.0,0.00023205]
[1765295384144,0.21739366,91999.0,91998.0,0.00023205]
[1765295384503,0.01086921,92003.0,91998.0,0.00023205]
[1765295384504,0.01086826,92011.0,91998.0,0.00184492]
[1765295384657,0.01086826,92011.0,92009.0,0.02852592]
[1765295384658,0.0001161,92011.0,92009.0,0.02852592]
[1765295384858,0.0001161,92011.0,92010.0,0.02852592]
[1765295385067,0.0001161,92011.0,92010.0,0.00161287]
[1765295386418,0.0001161,92011.0,92010.0,0.00461287]
[1765295387694,0.0001161,92011.0,92010.0,0.00161287]
[1765295387896,0.0011161,92011.0,92010.0,0.00161287]
[1765295388253,0.0011161,92011.0,92010.0,0.01791731]
[1765295388459,0.0001161,92011.0,92010.0,0.01791731]
[1765295388656,0.0011161,92011.0,92010.0,0.01791731]
[1765295389341,0.0001161,92011.0,92010.0,0.01791731]
[1765295389966,0.0001161,92011.0,92010.0,0.03998461]
[1765295390582,0.0011161,92011.0,92010.0,0.03998461]
[1765295391348,0.0011161,92011.0,92010.0,0.11579812]
[1765295391978,0.0011161,92011.0,92010.0,0.04025865]
[1765295392560,0.0011161,92011.0,92010.0,0.11607216]
[1765295392817,0.0011161,92011.0,92010.0,0.04025865]
[1765295393015,0.00123965,92033.0,92032.0,0.0220673]
[1765295393219,0.00123965,92033.0,92032.0,0.02368017]
[1765295394288,0.00123965,92033.0,92032.0,0.02863485]
[1765295394707,0.00123965,92033.0,92032.0,0.02963485]
[1765295396684,0.00123965,92033.0,92032.0,0.02863485]
[1765295397241,0.00123965,92033.0,92032.0,0.02463485]
[1765295397434,0.00123965,92033.0,92032.0,0.02863485]
[1765295397599,0.00123965,92033.0,92032.0,0.02363485]
[1765295397799,0.00123965,92033.0,92032.0,0.002]
[1765295397992,0.02099883,92033.0,92032.0,0.007]
[1765295398188,0.02099883,92033.0,92032.0,0.002]
[1765295398389,0.21732043,92030.0,92028.0,0.02202198]
[1765295398636,0.22818633,92031.0,92028.0,0.02202198]
[1765295398789,0.01086614,92029.0,92028.0,0.02202198]
[1765295398993,0.0108659,92031.0,92028.0,0.02202198]
[1765295399189,0.21732173,92030.0,92028.0,0.06009037]
[1765295399639,0.00123965,92033.0,92029.0,0.02202198]
[1765295399839,0.01086578,92032.0,92031.0,0.02202198]
[1765295400035,0.01210531,92033.0,92032.0,0.00999457]
[1765295400372,0.01210531,92033.0,92032.0,0.01199457]
[1765295400498,0.00123965,92033.0,92032.0,0.00999457]
[1765295400943,0.00123965,92033.0,92032.0,0.04806787]
[1765295401141,0.00123965,92033.0,92031.0,0.0390733]
[1765295401142,0.21731571,92032.0,92031.0,0.0390733]
[1765295401371,0.21731571,92032.0,92030.0,0.0380733]
[1765295401577,0.00123965,92033.0,92032.0,0.02202198]
[1765295401918,0.00123965,92033.0,92032.0,0.24095056]
[1765295402131,0.00123965,92033.0,92032.0,0.53665056]
[1765295402286,9.824e-05,92033.0,92032.0,5.52462315]
[1765295402665,0.01630444,92059.0,92058.0,0.2272489]
[1765295402908,0.21717471,92092.0,92090.0,0.00999457]
[1765295402909,0.01085882,92091.0,92090.0,0.00999457]
[1765295403103,1.08545476,92128.0,92098.0,0.02202198]
[1765295403104,0.01105776,92100.0,92098.0,0.02202198]
[1765295403314,0.01105776,92100.0,92090.0,0.00161287]
[1765295403315,0.00058741,92100.0,92097.0,0.02202198]
[1765295403613,0.01085788,92099.0,92098.0,0.02202198]
[1765295403815,0.00058741,92100.0,92099.0,0.02202198]
[1765295404588,0.02034659,92100.0,92099.0,0.02202198]
[1765295404789,0.00058741,92100.0,92099.0,0.02202198]
[1765295405123,0.00058741,92100.0,92099.0,0.02302198]
[1765295405735,0.00058741,92100.0,92099.0,0.02463485]
[1765295406414,0.00058741,92100.0,92099.0,0.02363485]
[1765295406632,0.00058741,92100.0,92099.0,0.02463485]
[1765295406840,0.00058741,92100.0,92099.0,0.02363485]
[1765295407041,0.00058741,92100.0,92099.0,0.54901247]
[1765295407376,0.01085081,92159.0,92117.0,5.51780976]
[1765295407515,0.00021363,92118.0,92117.0,5.51942263]
[1765295407724,0.00021363,92118.0,92117.0,5.58194562]
[1765295407927,0.0002,92160.0,92120.0,0.00199999]
[1765295408135,0.00021346,92152.0,92151.0,5.53136993]
[1765295408334,0.00021346,92152.0,92151.0,5.55874247]
[1765295408551,0.00021346,92152.0,92151.0,5.95874247]
[1765295408907,0.0002,92160.0,92159.0,0.50771624]
[1765295409115,0.01084422,92215.0,92179.0,0.21696915]
[1765295409325,0.21686767,92223.0,92179.0,5.34170739]
[1765295409326,0.00031344,92180.0,92179.0,5.34170739]
[1765295409624,0.00031344,92180.0,92179.0,4.84760739]
[1765295409823,0.00031344,92180.0,92179.0,0.67320739]
[1765295409953,0.00031344,92180.0,92179.0,0.03897998]
[1765295410152,0.00031344,92180.0,92179.0,0.02145998]
[1765295410521,0.00031344,92180.0,92179.0,3.03127998]
[1765295410730,0.00031344,92180.0,92179.0,5.33467998]
[1765295411077,0.00031344,92180.0,92179.0,5.34570739]
[1765295411288,0.00031344,92180.0,92179.0,5.40923038]
[1765295411487,0.0376603,92225.0,92189.0,5.59219059]
[1765295411687,0.0376603,92225.0,92224.0,5.52958526]
[1765295411885,0.03804702,92225.0,92224.0,5.55857067]
[1765295412469,0.00166514,92225.0,92224.0,5.60609366]
[1765295412693,0.003,92267.0,92229.0,0.5920965]
[1765295412892,0.00677592,92230.0,92229.0,5.60356191]
[1765295413093,0.00677592,92230.0,92229.0,5.29643892]
[1765295413309,0.00677592,92230.0,92229.0,1.27360739]
[1765295413503,0.00677592,92230.0,92229.0,1.30950739]
[1765295413724,0.00677592,92230.0,92229.0,1.92635892]
[1765295413931,0.00677592,92230.0,92229.0,5.95855892]
[1765295414166,0.21672229,92284.0,92283.0,0.02202198]
[1765295414296,0.01095201,92284.0,92283.0,0.00985254]
[1765295414498,0.01095201,92284.0,92283.0,0.03348739]
[1765295414703,0.0001159,92284.0,92283.0,0.03348739]
[1765295416159,0.0001159,92284.0,92283.0,0.02363485]
[1765295416552,0.0001159,92284.0,92283.0,0.03330363]
[1765295416747,0.0001159,92284.0,92283.0,0.02563485]
[1765295417338,0.0001159,92284.0,92283.0,0.02363485]
[1765295417750,0.0001159,92284.0,92283.0,0.02563485]
[1765295418149,0.02563485,92383.0,92283.0,0.29431287]
[1765295418367,0.22732294,92380.0,92370.0,0.00099999]
[1765295418722,0.22732294,92380.0,92341.0,0.2907]
[1765295418723,9e-05,92393.0,92387.0,5.0]
[1765295419015,0.00020591,92393.0,92392.0,0.01160744]
[1765295419180,0.00020591,92393.0,92392.0,0.30230744]
[1765295419360,0.00020591,92393.0,92392.0,2.13820744]
[1765295419764,0.00020591,92393.0,92392.0,5.30230744]
[1765295419765,0.00490767,92393.0,92392.0,5.30230744]
[1765295420167,0.00490767,92393.0,92392.0,5.30148744]
[1765295420378,10.0059,92500.0,92429.0,0.5324]
[1765295420578,0.01011576,92430.0,92429.0,5.29903574]
[1765295420834,0.01011576,92430.0,92429.0,3.04906485]
[1765295421004,0.01011576,92430.0,92429.0,2.36786485]
[1765295421164,0.01011576,92430.0,92429.0,2.58424715]
[1765295421365,0.01081338,92478.0,92468.0,5.0]
[1765295421609,0.0108149,92465.0,92460.0,0.00199998]
[1765295421783,0.01081443,92469.0,92460.0,0.00099999]
[1765295422126,0.01081431,92470.0,92469.0,0.02200181]
[1765295422708,0.21626339,92480.0,92440.0,0.75376584]
[1765295422709,0.21635421,92441.0,92440.0,0.00099999]
[1765295422912,0.0108163,92453.0,92452.0,0.02200181]
[1765295423092,0.01081396,92473.0,92470.0,0.00099999]
[1765295423294,0.01788214,92490.0,92450.0,0.00099999]
[1765295423295,0.21632847,92452.0,92450.0,0.00099999]
[1765295423500,0.01081747,92443.0,92442.0,0.02200181]
[1765295423682,0.01243034,92443.0,92442.0,0.02200181]
[1765295423883,0.21631677,92457.0,92450.0,0.00199998]
[1765295424091,0.21631677,92457.0,92420.0,0.001]
[1765295424092,0.00161287,92457.0,92440.0,0.00199998]
[1765295424292,0.21633081,92451.0,92450.0,0.00099999]
[1765295424513,0.21633081,92451.0,92440.0,0.00111573]
[1765295424514,0.01081747,92443.0,92440.0,0.00111573]
[1765295424767,0.22878221,92443.0,92442.0,0.02200181]
[1765295424972,0.01081583,92457.0,92450.0,0.00099999]
[1765295425123,0.01081583,92457.0,92456.0,0.00999457]
[1765295425332,0.01081373,92475.0,92470.0,0.00099999]
[1765295425518,0.01081466,92467.0,92466.0,0.02200181]
[1765295425716,0.22710313,92469.0,92468.0,0.02200181]
[1765295425921,0.00062,92560.0,92485.0,0.22706172]
[1765295426121,0.01080765,92527.0,92496.0,0.22622013]
[1765295426321,9.99097167,92500.0,92499.0,5.52892036]
[1765295426549,9.99097167,92500.0,92499.0,5.60928335]
[1765295426550,9.95888775,92500.0,92499.0,5.60928335]
[1765295426722,9.8777108,92500.0,92499.0,5.66381553]
[1765295426911,9.84524002,92500.0,92499.0,5.57127741]
[1765295427107,9.81276924,92500.0,92499.0,5.53399611]
[1765295427311,9.81276924,92500.0,92499.0,1.11394181]
[1765295427312,9.81438211,92500.0,92499.0,1.11394181]
[1765295427518,9.78194585,92500.0,92499.0,1.11394181]
[1765295427892,9.71546046,92500.0,92499.0,1.42991587]
[1765295428111,9.6830242,92500.0,92499.0,0.57203442]
[1765295428236,9.65058794,92500.0,92499.0,0.02200181]
[1765295428434,9.65058794,92500.0,92499.0,5.00999457]
[1765295428640,9.65058794,92500.0,92499.0,0.22621312]
[1765295428847,9.65058794,92500.0,92499.0,5.22621312]
[1765295429042,9.61815168,92500.0,92499.0,5.57943611]
[1765295429265,9.58571542,92500.0,92499.0,5.57943611]
[1765295429601,9.5208429,92500.0,92499.0,5.57943611]
[1765295429804,9.48840664,92500.0,92499.0,5.57943611]
[1765295430008,9.48840664,92500.0,92499.0,5.30069457]
[1765295430170,9.48840664,92500.0,92499.0,5.52892036]
[1765295430352,9.48840664,92500.0,92499.0,4.82120181]
[1765295430551,9.48840664,92500.0,92499.0,0.32960181]
[1765295430767,0.21621855,92499.0,92498.0,0.19999457]
[1765295431103,0.21621855,92499.0,92498.0,0.00999457]
[1765295431296,0.21783142,92499.0,92498.0,0.00999457]
[1765295432105,0.00161287,92499.0,92493.0,5.0]
[1765295432307,9.49148678,92500.0,92499.0,0.59144335]
[1765295432308,9.48840664,92500.0,92499.0,0.59144335]
[1765295432506,9.48840664,92500.0,92499.0,5.59144335]
[1765295432918,9.48840664,92500.0,92499.0,5.52892036]
[1765295433123,9.48840664,92500.0,92499.0,5.59144335]
[1765295433363,9.45596179,92500.0,92499.0,5.59144335]
[1765295433538,9.42351694,92500.0,92499.0,5.59144335]
[1765295433740,9.39107209,92500.0,92499.0,5.59144335]
[1765295433921,9.35807166,92500.0,92499.0,5.59144335]
[1765295434123,9.32507101,92500.0,92499.0,5.62872465]
[1765295434323,9.29263636,92500.0,92499.0,5.59144335]
[1765295434549,9.29263636,92500.0,92499.0,5.62872465]
[1765295434550,9.26020171,92500.0,92499.0,5.62872465]
[1765295434782,4.76006706,92500.0,92499.0,1.08781336]
[1765295434936,4.72470897,92500.0,92499.0,1.55033635]
[1765295435285,4.17955087,92500.0,92499.0,1.09144335]
[1765295435456,4.12601622,92500.0,92499.0,1.15462364]
[1765295435660,4.09358157,92500.0,92499.0,1.12011744]
[1765295435867,4.06114692,92500.0,92499.0,1.12011744]
[1765295436061,3.92871227,92500.0,92499.0,1.09144335]
[1765295436263,3.92871227,92500.0,92499.0,1.02892036]
[1765295436429,3.92871227,92500.0,92499.0,5.92892036]
[1765295436841,3.92871227,92500.0,92499.0,2.63310181]
[1765295437044,3.93032514,92500.0,92499.0,0.00999457]
[1765295437267,0.01081139,92495.0,92472.0,0.01081408]
[1765295437477,3.93032514,92500.0,92470.0,0.22709954]
[1765295437478,0.00161287,92493.0,92492.0,0.02371667]
[1765295437729,0.00161287,92493.0,92492.0,5.31441667]
[1765295437915,3.92871227,92500.0,92499.0,5.22621312]
[1765295438100,3.92871227,92500.0,92499.0,5.51691312]
[1765295438101,3.89627002,92500.0,92499.0,5.51691312]
[1765295438303,3.86382777,92500.0,92499.0,5.97943611]
[1765295438886,3.86382777,92500.0,92499.0,5.99144335]
[1765295439113,3.86382777,92500.0,92499.0,5.59144335]
[1765295439870,3.31153383,92500.0,92499.0,5.59144335]
[1765295440076,3.27909158,92500.0,92499.0,5.59144335]
[1765295440652,3.27909158,92500.0,92499.0,0.59144335]
[1765295440852,3.27909158,92500.0,92499.0,5.59144335]
[1765295441600,3.27909158,92500.0,92499.0,0.59144335]
[1765295441885,3.27909158,92500.0,92499.0,5.59144335]
[1765295443048,3.27909158,92500.0,92499.0,2.46652036]
[1765295443275,3.27909158,92500.0,92499.0,0.99912036]
[1765295443428,3.27909158,92500.0,92499.0,0.00999457]
[1765295443429,3.28378459,92500.0,92499.0,0.00999457]
[1765295443626,3.28378459,92500.0,92499.0,0.02200181]
[1765295445086,3.28217172,92500.0,92499.0,0.02200181]
[1765295445245,3.28378459,92500.0,92490.0,0.00199998]
[1765295445445,3.28070445,92500.0,92499.0,0.00999457]
[1765295448462,3.27909158,92500.0,92499.0,0.00999457]
[1765295449877,3.49530779,92500.0,92499.0,0.00999457]
[1765295451273,3.27909158,92500.0,92499.0,0.00999457]
[1765295451604,3.28217172,92500.0,92499.0,0.00999457]
[1765295451946,3.28217172,92500.0,92499.0,0.30069457]
[1765295452145,3.28217172,92500.0,92499.0,5.30069457]
[1765295452353,3.28217172,92500.0,92499.0,5.36321756]
[1765295453342,3.28217172,92500.0,92499.0,5.37299818]
[1765295454243,3.20614219,92500.0,92499.0,5.39543393]
[1765295454451,2.56003644,92500.0,92499.0,5.39543393]
[1765295455470,2.56003644,92500.0,92499.0,5.40745058]
[1765295455671,2.56003644,92500.0,92499.0,5.39663977]
[1765295455978,2.56003644,92500.0,92499.0,5.39592977]
[1765295456179,2.55403644,92500.0,92499.0,5.39592977]
[1765295456723,2.00883474,92500.0,92499.0,5.42659642]
[1765295456973,1.97640073,92500.0,92499.0,5.39592977]
[1765295457177,1.94396672,92500.0,92499.0,5.39592977]
[1765295458053,1.94396672,92500.0,92499.0,5.11675058]
[1765295458256,1.94396672,92500.0,92499.0,5.02201122]
[1765295458464,1.94396672,92500.0,92499.0,5.31271122]
[1765295458778,1.94396672,92500.0,92499.0,0.90871122]
[1765295458941,1.94396672,92500.0,92499.0,0.02201122]
[1765295459149,1.94557959,92500.0,92499.0,0.02201122]
[1765295459341,1.94557959,92500.0,92499.0,0.05885513]
[1765295459636,1.94396672,92500.0,92499.0,0.174]
[1765295459845,1.94396672,92500.0,92493.0,0.06613554]
[1765295459846,1.94557959,92500.0,92498.0,0.03684727]
[1765295460063,1.94249945,92500.0,92499.0,0.00999457]
[1765295460534,1.94088658,92500.0,92499.0,0.01686789]
[1765295460767,1.94088658,92500.0,92499.0,5.29757332]
[1765295461004,1.94088658,92500.0,92499.0,5.35322299]
[1765295461005,1.90844153,92500.0,92499.0,5.35322299]
[1765295461210,1.34232402,92500.0,92499.0,5.48544941]
[1765295461360,1.30987897,92500.0,92499.0,5.37523421]
[1765295461560,1.27743392,92500.0,92499.0,5.31849457]
[1765295461809,1.27743392,92500.0,92499.0,5.37361207]
[1765295462010,1.27743392,92500.0,92499.0,5.31849457]
[1765295462340,1.27743392,92500.0,92499.0,5.43608026]
[1765295462523,1.27743392,92500.0,92499.0,5.38101756]
[1765295462892,1.27743392,92500.0,92499.0,5.31849457]
[1765295463103,1.27743392,92500.0,92499.0,0.34289457]
[1765295463562,1.27743392,92500.0,92499.0,0.37044519]
[1765295463716,1.27743392,92500.0,92499.0,2.88549457]
[1765295464337,1.27743392,92500.0,92499.0,2.11559457]
[1765295464537,1.27743392,92500.0,92499.0,0.00999457]
[1765295464769,1.27743392,92500.0,92499.0,3.4001307]
[1765295464974,1.27743392,92500.0,92499.0,1.09609457]
[1765295465259,1.27743392,92500.0,92499.0,1.15861756]
[1765295465461,1.27743392,92500.0,92499.0,1.18942149]
[1765295465664,1.27743392,92500.0,92499.0,1.58942149]
[1765295465665,0.70727271,92500.0,92499.0,1.58942149]
[1765295465880,0.67483781,92500.0,92499.0,5.76321756]
[1765295466570,0.67483781,92500.0,92499.0,4.4056]
[1765295466769,0.67483781,92500.0,92499.0,5.15386818]
[1765295466990,0.67483781,92500.0,92499.0,4.77906818]
[1765295467212,0.67483781,92500.0,92499.0,0.51369457]
[1765295467589,0.67483781,92500.0,92499.0,0.45671361]
[1765295467800,9e-05,92518.0,92517.0,0.57732817]
[1765295468022,0.00020603,92518.0,92517.0,5.59508817]
[1765295468241,0.00020603,92518.0,92517.0,5.99508817]
[1765295468460,0.00072379,92518.0,92517.0,5.99508817]
[1765295468733,0.00072379,92518.0,92517.0,6.02257634]
[1765295468922,0.00072379,92518.0,92517.0,6.02232125]
[1765295469245,0.00072379,92518.0,92517.0,5.99483308]
[1765295469445,0.0028,92524.0,92517.0,5.99483308]
[1765295469446,0.0028,92524.0,92523.0,0.50686246]
[1765295469621,4.228e-05,92590.0,92529.0,0.56937144]
[1765295469622,0.01177278,92586.0,92529.0,0.56937144]
[1765295469825,0.010801,92584.0,92529.0,5.57936601]
[1765295470004,0.00097202,92586.0,92559.0,5.52878961]
[1765295470207,0.00073599,92560.0,92559.0,4.63714961]
[1765295470945,0.00073599,92560.0,92559.0,5.54654961]
[1765295471350,0.00073599,92560.0,92559.0,5.22744961]
[1765295471494,0.00073599,92560.0,92559.0,4.70454961]
[1765295471706,0.00073599,92560.0,92559.0,3.51551122]
[1765295471919,0.00073599,92560.0,92559.0,5.33047122]
[1765295472723,0.00073599,92560.0,92559.0,4.87224961]
[1765295472952,0.00073599,92560.0,92559.0,5.54654961]
[1765295473127,0.00097202,92586.0,92585.0,0.50671771]
[1765295473300,0.00097202,92586.0,92585.0,5.52447771]
[1765295473498,0.001,92598.0,92589.0,0.21600838]
[1765295473704,0.00458717,92592.0,92589.0,5.602043]
[1765295473972,0.001,92598.0,92591.0,0.59123792]
[1765295474258,0.0002,92600.0,92599.0,0.59121926]
[1765295474480,0.0002,92600.0,92599.0,5.59121926]
[1765295474686,0.01079272,92655.0,92599.0,5.59121926]
[1765295474687,0.21582017,92670.0,92669.0,0.02201122]
[1765295474814,0.0002838,92683.0,92660.0,0.00199998]
[1765295474815,0.01079028,92676.0,92670.0,0.00099999]
[1765295475019,0.00038688,92676.0,92675.0,5.00999457]
[1765295475238,0.00038688,92676.0,92675.0,0.00999457]
[1765295475399,0.00492342,92676.0,92675.0,2.44051122]
[1765295475611,0.00492342,92676.0,92672.0,0.2907]
[1765295475612,0.01079039,92675.0,92674.0,0.02201122]
[1765295475806,0.2174208,92675.0,92674.0,0.02201122]
[1765295476005,0.2174208,92675.0,92673.0,0.01630444]
[1765295476207,0.00161287,92674.0,92673.0,0.014749]
[1765295476427,0.01079179,92663.0,92662.0,0.00999457]
[1765295476645,0.01079179,92663.0,92648.0,0.01130442]
[1765295476646,0.21586849,92649.0,92648.0,0.01130442]
[1765295476882,0.01079156,92665.0,92649.0,0.25979]
[1765295477080,0.00161287,92665.0,92649.0,3.25603964]
[1765295477294,0.00161287,92665.0,92663.0,0.0220598]
[1765295477534,0.00161287,92664.0,92663.0,0.0220598]
[1765295478166,0.01079295,92653.0,92650.0,0.02158499]
[1765295478303,0.01240582,92653.0,92650.0,0.02158499]
[1765295478509,0.00161287,92653.0,92652.0,0.0220598]
[1765295478912,0.01079051,92674.0,92650.0,0.02158499]
[1765295479119,0.00161287,92674.0,92650.0,0.02158499]
[1765295479324,0.00161287,92674.0,92673.0,0.0220598]
[1765295479525,0.00038688,92676.0,92675.0,0.00999457]
[1765295479796,0.00038688,92676.0,92675.0,1.16726773]
[1765295480111,0.00670115,92680.0,92675.0,1.16726773]
[1765295480112,0.00670115,92680.0,92679.0,5.57901617]
[1765295480331,0.00681713,92680.0,92679.0,5.51649318]
[1765295480712,0.00681713,92680.0,92679.0,2.32429457]
[1765295481382,0.00681713,92680.0,92679.0,2.38681756]
[1765295481792,0.01146832,92680.0,92679.0,5.36321756]
[1765295482379,0.0002838,92683.0,92679.0,5.36321756]
[1765295482380,0.0002838,92683.0,92680.0,0.57980908]
[1765295482600,0.1,92700.0,92689.0,5.59105812]
[1765295482953,0.06763511,92700.0,92699.0,5.59103484]
[1765295483171,0.01078143,92752.0,92744.0,0.01986431]
[1765295483396,0.01078167,92750.0,92745.0,0.00947701]
[1765295483613,0.01078167,92750.0,92749.0,0.0220598]
[1765295483833,0.01078271,92741.0,92730.0,0.00947701]
[1765295484041,0.01784,92765.0,92737.0,0.0220598]
[1765295484304,0.01784,92765.0,92740.0,0.00999457]
[1765295484305,0.01078271,92741.0,92740.0,0.00999457]
[1765295484507,0.01078271,92741.0,92731.0,0.00161287]
[1765295484508,0.21567527,92732.0,92731.0,0.00947701]
[1765295484719,0.21567527,92732.0,92731.0,0.03153681]
[1765295484966,0.2264416,92741.0,92668.0,0.01784]
[1765295484967,0.01078143,92752.0,92734.0,0.00947701]
[1765295485185,0.01078143,92752.0,92745.0,0.00947701]